bitfinex/quotes_ETHUSD_20251010
["timestamp","ask_amount","ask_price","bid_price","bid_amount"]
[1760124556782,1.92,4000.8,3998.3,0.468]
[1760124557015,1.92,4000.8,3998.4,2.548]
[1760124557205,2.1846,4001.4,3998.5,0.468]
[1760124557365,0.0996,4001.4,3998.5,0.468]
[1760124558095,0.0996,4001.4,3998.1,0.2145]
[1760124558096,0.6336,4001.1,3998.1,0.2145]
[1760124558322,0.6336,4001.1,3993.7,4.59286142]
[1760124558323,0.6336,4000.7,3997.7,0.468]
[1760124558528,24.404634,4000.4,3997.7,0.468]
[1760124558816,0.6336,3999.8,3997.0,0.468]
[1760124559021,1.92,3999.4,3997.2,0.306]
[1760124559306,1.92,3999.6,3997.3,0.02501688]
[1760124559521,2.50037915,3999.4,3997.0,0.468]
[1760124559822,3.13414328,3999.2,3997.0,0.306]
[1760124560002,0.6336,3999.2,3997.0,0.306]
[1760124560210,1.92,3999.0,3997.1,0.02501813]
[1760124560376,0.0997,3999.3,3997.0,0.306]
[1760124560377,2.0197,3999.3,3997.0,0.306]
[1760124560579,1.92,3999.1,3997.0,0.306]
[1760124560874,0.1129,3999.7,3997.1,0.468]
[1760124561308,0.0997,4000.0,3997.1,0.468]
[1760124561719,4.053,4000.4,3997.1,0.468]
[1760124561720,1.92,3999.2,3997.1,0.468]
[1760124561873,0.0998,3999.1,3996.3,0.468]
[1760124562210,1.92,3998.8,3996.4,2.39]
[1760124562411,1.92,3998.6,3996.4,2.39]
[1760124562576,1.92,3998.6,3996.3,0.468]
[1760124562577,1.92,3998.4,3996.3,0.468]
[1760124562780,1.92,3998.3,3996.3,0.468]
[1760124563013,1.92,3998.1,3995.4,0.468]
[1760124563188,1.92,3997.6,3994.6,0.468]
[1760124563388,2.50181479,3997.1,3994.6,0.468]
[1760124563713,2.71372942,3997.0,3994.7,0.373]
[1760124563913,5.1960692,3996.7,3994.6,0.468]
[1760124564083,6.1838,3996.6,3993.9,0.003]
[1760124564279,1.92,3996.3,3993.9,0.003]
[1760124564478,4.005,3996.5,3994.0,4.052]
[1760124564714,4.005,3996.5,3993.9,0.003]
[1760124564715,1.92,3996.3,3993.9,0.003]
[1760124564917,24.404634,3996.0,3993.9,0.003]
[1760124565139,4.052,3995.9,3994.0,0.02503755]
[1760124565339,4.052,3995.9,3993.9,0.003]
[1760124565340,1.92,3995.8,3993.9,0.003]
[1760124565541,26.90745256,3995.5,3993.9,0.003]
[1760124565742,1.92,3995.3,3993.9,0.003]
[1760124565947,1.92,3995.1,3993.9,0.003]
[1760124566152,2.50375563,3994.0,3993.9,0.002]
[1760124566347,2.50375563,3994.0,3991.0,0.00505355]
[1760124566348,1.92,3993.9,3991.5,2.091]
[1760124566546,2.0141,3993.8,3991.5,2.091]
[1760124566851,2.0141,3993.8,3991.6,0.468]
[1760124566852,0.53236337,3993.8,3991.6,0.468]
[1760124567028,0.53236337,3993.8,3991.7,0.305]
[1760124567350,1.92,3993.4,3991.0,0.00505355]
[1760124567512,24.404634,3992.8,3991.0,0.00505355]
[1760124567714,1.92,3993.1,3991.0,0.00505355]
[1760124567914,0.0941,3994.1,3991.1,0.468]
[1760124568118,0.53943076,3994.1,3991.2,0.02505512]
[1760124568353,0.53943076,3994.1,3991.3,0.468]
[1760124568528,0.53943076,3994.1,3991.4,14.808]
[1760124568742,0.53943076,3994.1,3991.5,4.051]
[1760124569018,0.53943076,3994.1,3991.6,6.138]
[1760124569220,0.0941,3994.8,3991.7,0.468]
[1760124569560,0.3925884,3994.6,3991.7,0.468]
[1760124569721,0.0941,3995.6,3991.9,0.6336]
[1760124570051,24.404634,3995.4,3992.3,14.5]
[1760124570254,24.404634,3995.4,3991.0,0.00505355]
[1760124570255,1.92,3995.2,3991.0,0.00505355]
[1760124570439,26.324634,3992.8,3991.0,0.00505355]
[1760124570625,1.92,3992.6,3991.0,0.00505355]
[1760124571147,2.50470543,3992.5,3991.0,0.00505355]
[1760124571348,0.39285715,3992.3,3991.0,0.00505355]
[1760124571535,0.0999,3991.1,3991.0,0.00505355]
[1760124571916,0.1989,3991.1,3991.0,0.00505355]
[1760124572349,0.8325,3991.1,3991.0,0.00505355]
[1760124572656,0.8325,3991.1,3989.0,0.15]
[1760124572657,2.5536,3989.5,3985.9,2.087]
[1760124572829,6.2427,3989.4,3986.6,0.468]
[1760124573030,1.92,3989.3,3987.2,0.468]
[1760124573337,0.2036,3989.9,3987.2,0.468]
[1760124573530,1.92,3989.5,3986.4,0.004186]
[1760124573729,26.324634,3989.3,3986.4,0.004186]
[1760124573945,25.038234,3988.9,3986.4,0.004186]
[1760124574144,1.92,3988.6,3986.4,0.004186]
[1760124574319,0.1126,3987.6,3986.4,0.004186]
[1760124574735,26.324634,3987.5,3986.4,0.004186]
[1760124574962,24.404634,3987.2,3986.4,0.004186]
[1760124575259,24.404634,3987.3,3986.4,0.004186]
[1760124575419,0.6336,3987.0,3986.4,0.004186]
[1760124575620,0.6336,3986.6,3986.4,0.004186]
[1760124575821,0.0497,3987.1,3983.2,0.468]
[1760124575822,24.404634,3986.3,3983.2,0.468]
[1760124576023,6.543,3986.1,3983.3,2.11610481]
[1760124576215,4.052,3986.2,3983.4,0.468]
[1760124576446,0.6336,3986.0,3982.5,0.00184]
[1760124576759,24.404634,3985.7,3982.5,0.02694985]
[1760124577071,4.033,3985.3,3982.5,0.00184]
[1760124577246,0.6336,3984.9,3982.5,0.00184]
[1760124577448,0.6336,3984.0,3982.5,4e-05]
[1760124577619,24.450134,3984.8,3981.1,0.5]
[1760124577620,0.6336,3982.6,3981.1,0.5]
[1760124577931,24.509534,3981.2,3981.1,0.5]
[1760124578133,27.190134,3981.2,3981.1,0.5]
[1760124578447,26.555234,3981.2,3981.1,0.4987]
[1760124578820,27.181022,3981.2,3981.1,0.4987]
[1760124579020,38.504256,3981.2,3981.1,0.4987]
[1760124579250,38.47679,3981.2,3981.1,0.4987]
[1760124579418,26.324634,3981.2,3981.1,0.4987]
[1760124579620,0.39387965,3981.9,3981.1,0.4987]
[1760124579822,1.92,3981.7,3981.1,0.4987]
[1760124580048,1.92,3981.5,3981.1,0.4987]
[1760124580366,26.958234,3981.2,3981.1,0.4628]
[1760124580568,26.324634,3981.2,3981.1,0.4628]
[1760124580857,31.012234,3981.2,3981.1,0.4628]
[1760124581059,41.712634,3981.2,3981.1,7e-08]
[1760124581261,1.92,3981.2,3981.1,7e-08]
[1760124581668,28.083634,3981.2,3978.8,0.25]
[1760124581868,2.51319426,3979.0,3978.9,4.8874]
[1760124582034,2.51319426,3979.0,3978.9,1.66530059]
[1760124582035,31.014234,3979.0,3978.9,1.66530059]
[1760124582356,8.527,3978.9,3978.5,0.93521351]
[1760124582554,2.091,3981.6,3978.5,0.93521351]
[1760124582555,0.4412392,3979.8,3978.5,0.93521351]
[1760124582756,24.302634,3979.5,3978.5,0.93521351]
[1760124582958,24.302634,3979.3,3978.5,0.93521351]
[1760124583170,10.0,3979.0,3978.5,0.93521351]
[1760124583464,2.091,3982.4,3978.8,0.468]
[1760124583643,2.5093572,3985.1,3978.9,3.37925714]
[1760124583644,2.091,3983.4,3978.9,3.37925714]
[1760124583846,24.302634,3983.9,3979.1,1.92]
[1760124584022,24.302634,3983.6,3979.2,0.49313067]
[1760124584222,0.0318,3983.5,3979.3,0.6336]
[1760124584457,0.43334091,3983.6,3979.5,3.1464785]
[1760124584773,8.63,3985.2,3979.4,10.471]
[1760124584774,24.302634,3986.0,3980.4,14.80183146]
[1760124584981,4.0888,3986.6,3981.3,0.6336]
[1760124585271,24.302634,3986.4,3981.4,4.525]
[1760124585417,0.0318,3986.3,3981.8,0.6336]
[1760124585621,0.0318,3987.1,3982.3,1.92]
[1760124585853,0.0318,3987.8,3983.0,0.6336]
[1760124586158,0.0318,3987.8,3982.4,0.72111048]
[1760124586159,24.302634,3987.6,3983.1,0.468]
[1760124586331,0.0318,3987.5,3983.2,0.65870544]
[1760124586532,24.302634,3987.4,3984.1,0.6336]
[1760124586746,24.302634,3987.2,3982.7,2.092]
[1760124587059,24.302634,3987.0,3982.4,0.228]
[1760124587279,1.92,3986.9,3982.5,0.02510985]
[1760124587480,1.92,3986.6,3982.0,0.461913]
[1760124587688,24.302634,3986.4,3982.2,0.6336]
[1760124587845,2.50691431,3989.0,3983.9,0.6336]
[1760124587846,0.0318,3989.0,3983.9,0.6336]
[1760124588048,0.0318,3988.9,3984.0,0.4619004]
[1760124588257,24.052634,3988.7,3984.1,0.2257]
[1760124588485,0.0318,3988.8,3984.2,0.6336]
[1760124588486,24.052634,3988.5,3984.2,0.6336]
[1760124588778,24.052634,3988.3,3984.4,0.6336]
[1760124589085,1.92,3988.0,3984.6,0.6336]
[1760124589288,24.052634,3987.8,3984.8,0.6336]
[1760124589585,3.1419846,3987.5,3983.2,0.4386]
[1760124589789,24.052634,3987.2,3983.8,0.6336]
[1760124589988,24.052634,3987.2,3983.2,0.4386]
[1760124589989,24.052634,3987.0,3983.9,2.134]
[1760124590288,24.052634,3986.6,3982.7,0.4386]
[1760124590584,24.052634,3986.6,3980.0,0.2278]
[1760124590585,2.50943369,3985.0,3982.0,0.4386]
[1760124590800,24.052634,3984.7,3981.0,0.4386]
[1760124591099,24.052634,3984.3,3980.1,0.4386]
[1760124591300,24.052634,3983.9,3980.1,2.5306]
[1760124591450,25.972634,3983.7,3980.1,0.4386]
[1760124591650,1.92,3983.2,3980.7,0.002]
[1760124591963,4.43090311,3982.7,3978.3,0.228]
[1760124592150,2.5126281,3979.9,3977.3,0.004186]
[1760124592350,12.51103027,3982.5,3977.3,0.004186]
[1760124592351,1.92,3979.5,3977.3,0.004186]
[1760124592581,2.264,3979.4,3977.3,0.004186]
[1760124592757,1.92,3979.2,3977.6,0.842]
[1760124592957,22.74,3979.7,3977.7,0.02514015]
[1760124593169,20.849,3979.9,3977.5,0.4386]
[1760124593395,4.055,3980.1,3977.3,0.004186]
[1760124593396,1.92,3979.6,3977.3,0.004186]
[1760124593604,2.51341094,3978.7,3977.3,0.004186]
[1760124593902,30.661234,3978.6,3978.5,0.93031351]
[1760124594099,23.228,3978.6,3978.5,0.93031351]
[1760124594253,23.8616,3978.6,3978.5,0.93031351]
[1760124594452,2.5536,3978.5,3977.3,0.004186]
[1760124594697,24.052634,3976.0,3975.8,0.003]
[1760124594904,24.052634,3975.6,3975.0,0.55]
[1760124595082,16.6096,3975.5,3975.0,0.55]
[1760124595299,24.052634,3974.0,3971.0,0.00509075]
[1760124595497,35.972634,3973.9,3971.0,0.00509075]
[1760124595823,24.052634,3973.6,3969.6,0.02519145]
[1760124596023,24.052634,3969.6,3968.4,5.13145559]
[1760124596243,1.92,3973.3,3968.4,5.13145559]
[1760124596244,24.052634,3970.0,3968.4,5.13145559]
[1760124596379,24.052634,3969.8,3968.4,5.13145559]
[1760124596710,10.0,3970.8,3968.4,5.13145559]
[1760124596711,1.92,3969.4,3968.4,5.13145559]
[1760124596882,1.92,3969.4,3963.5,1.23661297]
[1760124596883,1.92,3968.0,3963.5,1.23661297]
[1760124597197,1.92,3968.0,3959.9,1.2182305]
[1760124597198,0.99999999,3963.6,3959.9,1.2182305]
[1760124597523,1.92,3965.8,3958.5,0.2278]
[1760124597524,0.0372,3966.9,3960.1,1.23114981]
[1760124597740,0.6336,3966.5,3960.8,1.25369428]
[1760124597911,2.5536,3966.3,3958.8,2.52601009]
[1760124598079,30.0,3966.0,3961.9,14.5]
[1760124598281,0.02524869,3965.9,3961.9,14.5]
[1760124598622,10.0,3967.5,3964.3,2.52245902]
[1760124598829,23.577,3968.7,3964.4,6.5916]
[1760124599041,30.0,3968.5,3964.5,14.5]
[1760124599183,30.0,3968.3,3964.5,14.5]
[1760124599525,30.0,3968.6,3964.6,4.06]
[1760124599730,30.0,3967.3,3962.4,0.4386]
[1760124599882,1.92,3967.1,3963.4,14.5]
[1760124600224,0.1671,3967.2,3958.7,15.24043146]
[1760124600225,30.0,3963.4,3958.7,15.24043146]
[1760124600429,1.92,3963.1,3957.9,6.23575667]
[1760124600579,30.0356,3963.0,3962.0,0.002]
[1760124600780,0.6336,3965.0,3962.0,0.002]
[1760124600781,0.0356,3964.0,3962.0,0.002]
[1760124600982,0.0372,3966.6,3962.1,2.5356]
[1760124601223,30.0,3967.2,3962.9,14.5]
[1760124601431,0.0356,3967.8,3962.9,14.5]
[1760124601432,4.062,3968.7,3964.1,14.80183146]
[1760124601580,0.0365,3970.9,3964.3,1.92]
[1760124601782,0.0365,3970.9,3965.4,1.92]
[1760124602031,0.13162424,3971.0,3965.7,1.92]
[1760124602330,0.0374,3971.2,3968.7,14.5]
[1760124602546,0.0384,3972.5,3969.9,2.51893568]
[1760124602685,0.0384,3972.5,3968.8,10.621]
[1760124602686,0.13158271,3971.3,3969.2,4.064]
[1760124602884,0.0399,3974.0,3970.0,0.4386]
[1760124603088,0.25622772,3974.8,3972.4,14.5]
[1760124603314,0.0105,3975.6,3972.5,4.064]
[1760124603538,0.0105,3975.6,3972.5,6.162]
[1760124603750,0.0105,3975.6,3972.6,0.4386]
[1760124604045,0.1687,3977.8,3975.5,14.5]
[1760124604354,0.0436,3979.4,3975.6,12.9486]
[1760124604355,0.25611105,3978.9,3975.6,12.9486]
[1760124604646,0.25611105,3978.9,3974.0,2.51630598]
[1760124604647,0.0453,3979.4,3975.7,17.8751528]
[1760124604943,0.007,3980.7,3977.5,14.5]
[1760124604944,16.596,3980.7,3977.5,14.5]
[1760124605098,0.0356,3980.8,3977.6,12.719]
[1760124605300,0.0356,3980.8,3977.4,0.4386]
[1760124605515,2.064,3982.3,3977.5,12.719]
[1760124605715,2.064,3982.3,3977.4,8.3076]
[1760124605716,30.0,3981.4,3978.8,14.5]
[1760124605938,0.193,3983.1,3979.0,2.51319426]
[1760124606162,30.0,3982.5,3978.5,0.4386]
[1760124606318,30.0,3982.5,3978.6,14.5]
[1760124606319,30.0,3982.3,3978.6,14.5]
[1760124606535,1.23538098,3981.9,3976.7,4.065]
[1760124606729,30.0,3982.3,3976.8,11.0596]
[1760124606919,10.623,3982.2,3976.9,3.585]
[1760124607258,30.0,3981.9,3977.1,0.6336]
[1760124607416,3.625,3982.1,3977.7,0.6336]
[1760124607617,30.0,3982.9,3980.0,2.5125117]
[1760124607852,30.0,3982.9,3978.1,2.51376285]
[1760124607853,0.0368,3982.8,3978.3,0.4386]
[1760124608055,2.1338,3982.7,3978.4,0.02513573]
[1760124608254,30.0,3981.2,3978.3,0.176]
[1760124608438,0.1256,3978.3,3978.0,2.097]
[1760124608662,1.92,3980.9,3977.4,0.02514205]
[1760124608663,0.1256,3977.9,3977.4,0.02514205]
[1760124608862,10.0,3980.2,3974.9,0.4386]
[1760124609078,0.0378,3980.6,3976.8,14.5]
[1760124609279,0.0387,3982.8,3976.9,10.3396]
[1760124609493,8.73,3982.7,3977.0,0.46374458]
[1760124609820,0.1559,3983.6,3977.4,0.6336]
[1760124609821,30.0,3982.5,3977.4,0.6336]
[1760124609942,2.857,3982.4,3978.0,14.5]
[1760124610145,4.063,3982.2,3978.1,12.23373762]
[1760124610386,2.097,3985.1,3980.6,0.6336]
[1760124610557,0.13121425,3984.6,3980.7,31.222]
[1760124610884,30.0,3984.3,3980.8,13.38072057]
[1760124611071,30.0,3984.3,3980.9,4.07]
[1760124611072,0.0367,3984.2,3980.9,4.07]
[1760124611242,30.0,3984.0,3980.3,6.553]
[1760124611442,30.0,3983.8,3980.9,2.097]
[1760124611676,30.0,3983.6,3981.0,0.02511931]
[1760124611881,30.0,3983.6,3980.3,6.553]
[1760124611882,30.0,3980.4,3977.2,0.4386]
[1760124612086,0.0367,3983.5,3977.2,0.4386]
[1760124612087,4.068,3981.3,3977.3,8.648]
[1760124612282,0.0367,3981.2,3977.4,14.96374205]
[1760124612452,0.0367,3981.2,3978.5,2.51347071]
[1760124612641,0.0367,3982.4,3978.6,4.09213446]
[1760124612844,0.0367,3983.8,3978.7,5.4196]
[1760124613042,0.0367,3983.8,3978.0,2.51381433]
[1760124613043,0.0367,3985.1,3981.0,0.0008]
[1760124613243,0.0367,3985.1,3981.4,0.6336]
[1760124613471,18.8781,3984.4,3981.4,0.6336]
[1760124613697,11.183,3984.3,3981.1,0.4386]
[1760124613912,2.249,3984.1,3981.3,0.6336]
[1760124614112,30.0,3984.1,3981.3,0.6336]
[1760124614269,30.0,3984.1,3981.0,0.0008]
[1760124614772,30.0,3983.9,3981.1,0.4386]
[1760124614971,30.0,3984.4,3982.4,0.6336]
[1760124615280,30.0,3984.4,3981.2,2.01411805]
[1760124615281,0.001,3984.5,3982.6,0.6336]
[1760124615483,0.001,3984.5,3982.5,19.04870985]
[1760124615484,0.001,3984.5,3982.7,12.719]
[1760124615697,8.345,3984.4,3982.0,2.096]
[1760124615901,0.001,3984.5,3982.2,0.6336]
[1760124616211,0.04,3988.5,3985.2,2.50924116]
[1760124616504,14.277,3988.4,3985.4,0.6336]
[1760124616665,0.1916,3988.3,3985.5,0.02509095]
[1760124616866,30.0,3988.2,3983.5,0.45]
[1760124617085,8.784,3987.5,3983.6,0.6496]
[1760124617326,0.1606,3988.1,3984.0,0.6336]
[1760124617508,0.0368,3989.8,3984.5,1.92]
[1760124617811,27.081,3990.6,3986.3,14.5]
[1760124617968,30.0,3990.3,3986.5,0.6336]
[1760124618165,4.072,3990.3,3986.8,2.50825183]
[1760124618370,30.0,3989.9,3985.6,0.45]
[1760124618611,1.23812784,3989.6,3985.7,15.1336]
[1760124618923,0.1248,3985.7,3985.3,4.073]
[1760124619067,0.0387,3987.5,3984.9,4.072]
[1760124619407,0.0387,3987.5,3983.5,6.547]
[1760124619408,30.0,3990.1,3985.0,14.95]
[1760124619620,16.268,3988.8,3985.2,0.6336]
[1760124619772,10.025,3990.0,3985.3,0.02509221]
[1760124619773,30.0,3988.6,3985.3,0.02509221]
[1760124620122,0.0399,3988.7,3985.3,0.02509221]
[1760124620415,7.855,3991.8,3985.9,0.6336]
[1760124620416,3.33,3988.6,3985.9,0.6336]
[1760124620708,0.001,3988.1,3986.0,14.5250878]
[1760124620912,0.001,3988.1,3986.0,14.5]
[1760124621111,20.813,3988.0,3986.1,4.073]
[1760124621312,0.001,3988.1,3986.2,0.02508654]
[1760124621624,0.001,3988.1,3986.3,0.02508591]
[1760124621773,0.001,3988.1,3986.2,0.65868654]
[1760124621974,0.001,3988.1,3986.4,0.6336]
[1760124622276,0.001,3988.1,3985.0,0.45]
[1760124622506,1.92,3987.9,3985.1,8.93]
[1760124622707,7.229,3987.8,3985.1,8.93]
[1760124622891,7.229,3987.8,3983.2,2.510498]
[1760124622892,30.0,3987.6,3983.7,0.45]
[1760124623092,30.0,3987.4,3983.9,2.093]
[1760124623293,0.1033,3987.5,3984.0,0.45]
[1760124623498,30.0,3988.0,3984.1,14.52509977]
[1760124623686,30.0,3988.0,3984.2,0.45]
[1760124623891,30.0,3987.8,3984.3,12.703]
[1760124624119,30.0,3987.8,3984.2,0.45]
[1760124624120,0.1038,3987.7,3984.2,0.45]
[1760124624433,30.0,3988.0,3984.4,4.067]
[1760124624579,4.068,3987.9,3984.5,1.0836]
[1760124624782,1.92,3987.6,3984.5,0.45]
[1760124624984,31.92,3987.5,3984.5,0.45]
[1760124625294,30.0,3987.0,3983.4,6.542]
[1760124625483,1.92,3986.7,3983.3,6.165]
[1760124625684,30.0,3986.3,3983.3,6.165]
[1760124625936,30.0,3986.1,3983.3,6.165]
[1760124626227,1.92,3986.0,3983.4,0.45]
[1760124626376,1.92,3985.8,3983.4,0.45]
[1760124626582,0.0995,3987.1,3983.6,2.51029219]
[1760124626821,0.0995,3987.1,3983.4,14.95]
[1760124626822,0.2247,3988.3,3984.0,0.6336]
[1760124627022,30.0,3988.0,3983.7,0.45]
[1760124627191,4.074,3987.9,3983.7,0.45]
[1760124627381,7.607,3987.7,3984.0,0.6336]
[1760124627586,0.2247,3988.3,3983.6,1.92]
[1760124627587,30.0,3988.0,3984.5,14.5]
[1760124627898,4.077,3989.7,3987.1,0.6336]
[1760124628102,0.099,3990.3,3987.3,0.6336]
[1760124628431,30.0,3991.1,3988.2,0.6336]
[1760124628635,30.0,3991.1,3988.5,0.6336]
[1760124628930,30.0,3990.9,3987.6,0.6336]
[1760124629140,30.0,3990.6,3987.5,0.6336]
[1760124629345,30.0,3990.4,3986.7,0.45]
[1760124629495,31.92,3990.2,3986.0,3.132]
[1760124629693,31.92,3990.2,3985.9,14.5]
[1760124629694,1.92,3989.3,3985.9,14.5]
[1760124629916,0.099,3989.5,3986.0,13.3969]
[1760124630118,24.871,3990.0,3986.9,3.14180218]
[1760124630399,18.626,3990.0,3987.1,0.6336]
[1760124630624,0.1333,3995.1,3987.2,16.572]
[1760124630625,2.50449676,3992.9,3987.2,16.572]
[1760124630827,2.50449676,3992.9,3987.3,0.47507962]
[1760124630828,30.0,3991.3,3987.3,0.47507962]
[1760124630999,0.0993,3991.4,3987.3,0.47507962]
[1760124631194,0.0493,3992.2,3987.4,2.50789988]
[1760124631516,31.23470294,3993.6,3988.9,14.5]
[1760124631695,30.0,3993.0,3989.0,12.3719]
[1760124632044,1.28942329,3992.7,3984.5,3.401]
[1760124632198,1.28942329,3992.7,3981.6,0.2359]
[1760124632199,1.27611091,3992.2,3986.8,2.50825521]
[1760124632535,1.92,3991.9,3987.5,2.50780071]
[1760124632838,30.0,3992.0,3989.4,0.6336]
[1760124632839,4.078,3992.0,3989.4,0.6336]
[1760124633009,6.538,3993.8,3989.4,0.6336]
[1760124633010,1.92,3991.8,3989.4,0.6336]
[1760124633328,30.0,3992.7,3989.5,14.5]
[1760124633494,0.08701,3994.0,3989.1,0.45]
[1760124633495,1.92,3992.4,3989.1,0.45]
[1760124633717,0.6336,3991.9,3987.4,8.629]
[1760124633948,30.0,3991.5,3987.6,0.137]
[1760124634151,30.0,3991.3,3987.7,0.02507711]
[1760124634456,1.92,3990.7,3987.7,14.5]
[1760124634627,30.0,3990.4,3987.7,14.5]
[1760124634957,23.722,3990.6,3987.9,0.6336]
[1760124635159,1.92,3990.3,3987.9,3.14118061]
[1760124635367,2.63520998,3993.6,3988.1,0.6336]
[1760124635368,0.0495,3991.7,3988.1,0.6336]
[1760124635570,0.0495,3992.4,3988.3,0.6336]
[1760124635732,2.122,3992.3,3989.3,0.6336]
[1760124635936,2.122,3992.3,3989.5,0.6336]
[1760124635937,14.241,3992.3,3989.5,0.6336]
[1760124636139,26.082,3992.1,3989.5,0.6336]
[1760124636336,10.0,3992.2,3989.5,0.6336]
[1760124636634,0.0495,3992.4,3989.4,0.45]
[1760124636857,0.0495,3993.2,3989.4,0.45]
[1760124637020,2.63640027,3995.1,3989.4,0.45]
[1760124637021,30.0,3993.6,3989.4,0.45]
[1760124637220,10.13103531,3995.0,3990.6,14.5]
[1760124637560,15.293,3994.8,3990.7,6.87495826]
[1760124637774,0.0502,3994.9,3991.5,2.50531755]
[1760124637973,0.0502,3994.9,3991.6,4.09705261]
[1760124638277,0.130997,3995.8,3991.7,14.5]
[1760124638557,0.0521,3996.9,3991.8,0.47505135]
[1760124638769,28.326,3996.7,3991.9,0.02505072]
[1760124638973,28.326,3996.7,3991.6,6.57724993]
[1760124638974,2.50229987,3996.4,3992.6,2.50462987]
[1760124639172,2.50229987,3996.4,3992.7,7.2199]
[1760124639173,30.0,3996.4,3992.7,7.2199]
[1760124639350,30.0,3996.5,3992.8,0.47504508]
[1760124639562,8.563,3996.5,3992.8,0.47504508]
[1760124639923,4.717,3996.9,3992.8,0.47504508]
[1760124640086,0.22309214,3997.0,3994.1,14.5]
[1760124640378,0.22309214,3997.0,3994.2,6.8499]
[1760124640530,0.22309214,3997.0,3994.3,0.47503567]
[1760124640878,0.22309214,3997.0,3994.3,0.45]
[1760124641328,0.22309214,3997.0,3994.4,14.5]
[1760124641529,0.22309214,3997.0,3994.5,0.45]
[1760124641841,0.22309214,3997.0,3994.8,2.50319196]
[1760124642034,0.22309214,3997.0,3995.0,2.50312891]
[1760124642229,0.22309214,3997.0,3995.8,14.5]
[1760124642470,0.22309214,3997.0,3996.0,0.6336]
[1760124642765,0.22309214,3997.0,3996.2,0.6336]
[1760124642967,0.22309214,3997.0,3996.4,0.6336]
[1760124643166,0.22309214,3997.0,3996.5,14.5]
[1760124643341,0.22309214,3997.0,3995.5,0.45]
[1760124643704,0.22309214,3997.0,3995.6,14.52502753]
[1760124643901,0.22309214,3997.0,3994.4,0.45]
[1760124644195,0.146,3996.9,3994.8,4.065]
[1760124644392,0.146,3996.9,3994.8,18.565]
[1760124644692,0.22309214,3997.0,3994.1,6.529]
[1760124644693,1.92,3996.6,3994.1,6.529]
[1760124644853,1.92,3996.1,3994.1,6.529]
[1760124645065,1.92,3996.1,3993.8,4.064]
[1760124645066,1.92,3995.8,3993.8,4.064]
[1760124645257,1.9727,3995.7,3993.4,4.064]
[1760124645604,2.50245546,3996.1,3993.5,0.45]
[1760124645766,1.92,3996.0,3993.5,0.45]
[1760124646107,1.92,3996.4,3993.5,0.45]
[1760124646267,1.92,3995.6,3993.1,6.9668]
[1760124646456,27.928,3995.2,3993.1,6.528]
[1760124646663,11.92,3995.3,3993.1,6.528]
[1760124646664,2.84,3995.0,3993.1,6.528]
[1760124647004,1.92,3996.3,3993.2,0.4388]
[1760124647302,30.0,3996.6,3993.3,0.6336]
[1760124647462,30.0,3996.6,3993.5,0.6336]
[1760124647664,1.92,3996.3,3993.7,0.6336]
[1760124647864,2.214,3996.9,3993.9,0.6336]
[1760124648092,10.0,3996.8,3993.9,0.6336]
[1760124648255,30.0,3996.6,3993.9,0.6336]
[1760124648456,0.22309214,3997.0,3994.0,0.4388]
[1760124648665,0.22309214,3997.0,3994.3,0.6336]
[1760124648863,0.22309214,3997.0,3994.4,4.5093]
[1760124649094,0.22309214,3997.0,3994.9,0.6336]
[1760124649296,0.22309214,3997.0,3995.1,0.6336]
[1760124649599,0.1557,3995.2,3991.9,0.2359]
[1760124649899,10.0,3994.8,3992.0,0.4513]
[1760124650062,0.0562,3995.1,3992.0,0.4763501]
[1760124650395,1.92,3994.8,3992.1,6.526]
[1760124650597,1.92,3995.7,3992.3,3.13841243]
[1760124650797,2.50152801,3997.6,3992.1,6.526]
[1760124650798,2.50037797,3999.4,3993.0,2.616]
[1760124650998,0.0495,3997.7,3993.5,0.6336]
[1760124651233,0.905,3997.6,3994.3,14.5]
[1760124651378,0.905,3997.6,3994.4,11.90623504]
[1760124651572,0.905,3997.6,3994.4,11.8812]
[1760124651792,0.905,3997.6,3994.7,0.6336]
[1760124651988,0.0495,3997.9,3994.9,0.6336]
[1760124652188,0.145,3997.2,3994.9,0.6336]
[1760124652422,31.92,3996.6,3994.5,0.6336]
[1760124652614,0.0503,3997.5,3994.7,0.6336]
[1760124652811,4.056,3996.8,3994.7,0.6336]
[1760124653112,0.161,3996.7,3994.7,0.6336]
[1760124653416,0.0503,3998.3,3994.9,0.6336]
[1760124653617,0.0503,3998.3,3994.6,17.00337673]
[1760124653618,1.589,3997.4,3995.1,0.6336]
[1760124653824,0.0503,3998.3,3995.3,0.6336]
[1760124654115,0.144,3997.3,3995.5,0.6336]
[1760124654315,1.92,3997.9,3995.5,0.6336]
[1760124654500,1.92,3998.0,3995.5,0.6336]
[1760124654701,0.0503,3998.3,3995.5,0.6336]
[1760124655017,2.55165582,3999.2,3995.5,3.13641093]
[1760124655175,2.55165582,3999.2,3995.4,4.056]